[Event "*** SCC Grand Prix: Titled Tuesday Blitz"]
[Site "Chess.com"]
[Date "2020.07.07"]
[Round "10"]
[White "barbara25"]
[Black "yamalchess"]
[Result "0-1"]
[WhiteElo "2320"]
[BlackElo "2438"]
[TimeControl "180+1"]
[EndTime "11:58:59 PDT"]
[Termination "yamalchess won by resignation"]

1. e4 {[%clk 0:03:00.9]} 1... e5 {[%clk 0:02:59.4]} 2. Nf3 {[%clk 0:02:58.9]}
2... Nc6 {[%clk 0:02:58.5]} 3. Bc4 {[%clk 0:02:57.3]} 3... Nf6 {[%clk
0:02:57.4]} 4. O-O {[%clk 0:02:54.2]} 4... Nxe4 {[%clk 0:02:50.6]} 5. d4 {[%clk
0:02:53.6]} 5... exd4 {[%clk 0:02:49.4]} 6. Bd5 {[%clk 0:02:51.8]} 6... Nf6
{[%clk 0:02:45.2]} 7. Bxc6 {[%clk 0:02:50]} 7... dxc6 {[%clk 0:02:43.5]} 8. Qxd4
{[%clk 0:02:50.4]} 8... Qxd4 {[%clk 0:02:42.8]} 9. Nxd4 {[%clk 0:02:50.1]} 9...
Bc5 {[%clk 0:02:38.2]} 10. Nb3 {[%clk 0:02:49]} 10... Bb6 {[%clk 0:02:34.5]} 11.
Re1+ {[%clk 0:02:48.5]} 11... Be6 {[%clk 0:02:33.6]} 12. c4 {[%clk 0:02:48.5]}
12... c5 {[%clk 0:02:03]} 13. Be3 {[%clk 0:02:46.4]} 13... O-O-O {[%clk
0:01:56]} 14. Nxc5 {[%clk 0:02:45.1]} 14... Bxc4 {[%clk 0:01:53.7]} 15. Nc3
{[%clk 0:02:44]} 15... Ng4 {[%clk 0:01:52.2]} 16. N3a4 {[%clk 0:02:39.9]} 16...
Nxe3 {[%clk 0:01:50.4]} 17. Rxe3 {[%clk 0:02:39.4]} 17... Rhe8 {[%clk
0:01:49.1]} 18. Nxb6+ {[%clk 0:02:34.9]} 18... axb6 {[%clk 0:01:47.8]} 19. Ne4
{[%clk 0:02:25.9]} 19... f5 {[%clk 0:01:44.2]} 20. Nc3 {[%clk 0:02:25.4]} 20...
Rxe3 {[%clk 0:01:43]} 21. fxe3 {[%clk 0:02:25.6]} 21... Rd2 {[%clk 0:01:42.6]}
22. b3 {[%clk 0:02:22.6]} 22... Be6 {[%clk 0:01:37.4]} 23. Rd1 {[%clk
0:02:16.3]} 23... Rxd1+ {[%clk 0:01:33.5]} 24. Nxd1 {[%clk 0:02:15.4]} 24... b5
{[%clk 0:01:33.7]} 25. g3 {[%clk 0:02:15.4]} 25... b4 {[%clk 0:01:33.6]} 26. Kf2
{[%clk 0:02:14.8]} 26... c5 {[%clk 0:01:33]} 27. Kf3 {[%clk 0:02:14.9]} 27...
Kd7 {[%clk 0:01:29.7]} 28. Kf4 {[%clk 0:02:13.7]} 28... Kd6 {[%clk 0:01:29.3]}
29. Nb2 {[%clk 0:02:10.2]} 29... b5 {[%clk 0:01:28.4]} 30. e4 {[%clk 0:02:09.8]}
30... fxe4 {[%clk 0:01:22.5]} 31. Kxe4 {[%clk 0:02:09.8]} 31... c4 {[%clk
0:01:20.8]} 32. Kd4 {[%clk 0:02:02.8]} 32... cxb3 {[%clk 0:01:01.8]} 33. axb3
{[%clk 0:02:02.1]} 33... Bxb3 {[%clk 0:01:00.1]} 34. Nd3 {[%clk 0:02:01.9]}
34... Bc4 {[%clk 0:00:59.6]} 35. Nxb4 {[%clk 0:02:01.8]} 35... Ke6 {[%clk
0:00:59.1]} 36. Ke4 {[%clk 0:02:00.6]} 36... Kf6 {[%clk 0:00:57.8]} 37. Kf4
{[%clk 0:02:00]} 37... g5+ {[%clk 0:00:57.8]} 38. Ke4 {[%clk 0:01:58.1]} 38...
Ke6 {[%clk 0:00:53.3]} 39. h4 {[%clk 0:01:57.4]} 39... gxh4 {[%clk 0:00:52.2]}
40. gxh4 {[%clk 0:01:57.2]} 40... Kf6 {[%clk 0:00:51.9]} 41. Kf4 {[%clk
0:01:55.6]} 41... Kg6 {[%clk 0:00:52.1]} 42. Nc2 {[%clk 0:01:50.3]} 42... Bd3
{[%clk 0:00:48.8]} 43. Nb4 {[%clk 0:01:48]} 43... Bb1 {[%clk 0:00:47.6]} 44. Nc6
{[%clk 0:01:43.7]} 44... Kf6 {[%clk 0:00:43.1]} 45. Nb4 {[%clk 0:01:40.3]} 45...
Ke6 {[%clk 0:00:41]} 46. Ke3 {[%clk 0:01:31.3]} 46... Ke5 {[%clk 0:00:40.2]} 47.
Kd2 {[%clk 0:01:29.7]} 47... Kf5 {[%clk 0:00:37.1]} 48. Nd5 {[%clk 0:01:28.3]}
48... Be4 {[%clk 0:00:29.6]} 49. Nc3 {[%clk 0:01:23.1]} 49... Bc6 {[%clk
0:00:29.2]} 50. Ne2 {[%clk 0:01:21.7]} 50... Kg4 {[%clk 0:00:28.1]} 51. Nd4
{[%clk 0:01:21.4]} 51... Bd7 {[%clk 0:00:28.3]} 52. Ke3 {[%clk 0:01:17.3]} 52...
Kxh4 {[%clk 0:00:28.4]} 53. Kf4 {[%clk 0:01:17.3]} 53... b4 {[%clk 0:00:27.5]}
54. Kf3 {[%clk 0:01:15.4]} 54... Kg5 {[%clk 0:00:26.6]} 55. Nb3 {[%clk
0:01:09.3]} 55... h5 {[%clk 0:00:26.5]} 56. Kg3 {[%clk 0:01:07.3]} 56... h4+
{[%clk 0:00:26.6]} 57. Kh2 {[%clk 0:01:07.3]} 57... Kf4 {[%clk 0:00:26.7]} 58.
Nc5 {[%clk 0:01:07]} 58... Bf5 {[%clk 0:00:23.6]} 59. Nb3 {[%clk 0:01:01.1]}
59... Ke3 {[%clk 0:00:23.8]} 60. Nc5 {[%clk 0:00:57.8]} 60... Kd4 {[%clk
0:00:23.1]} 61. Nb3+ {[%clk 0:00:57.6]} 61... Kc3 {[%clk 0:00:23.2]} 62. Nc5
{[%clk 0:00:56.8]} 62... b3 {[%clk 0:00:23.2]} 63. Na4+ {[%clk 0:00:42.4]} 63...
Kc2 {[%clk 0:00:23.1]} 64. Kg2 {[%clk 0:00:38.4]} 64... b2 {[%clk 0:00:23.3]}
65. Nxb2 {[%clk 0:00:38.5]} 65... Kxb2 {[%clk 0:00:23.5]} 66. Kf3 {[%clk
0:00:37.1]} 66... Kc3 {[%clk 0:00:23.7]} 67. Kf2 {[%clk 0:00:36.6]} 67... Kd4
{[%clk 0:00:23.4]} 68. Kf3 {[%clk 0:00:36.9]} 68... Ke5 {[%clk 0:00:23.6]} 69.
Ke3 {[%clk 0:00:36.4]} 69... Be4 {[%clk 0:00:23.8]} 70. Kf2 {[%clk 0:00:36.1]}
70... Kf4 {[%clk 0:00:24.2]} 71. Kg1 {[%clk 0:00:35.6]} 71... Kg3 {[%clk
0:00:24.4]} 0-1

[Event "*** SCC Grand Prix: Titled Tuesday Blitz"]
[Site "Chess.com"]
[Date "2020.07.07"]
[Round "10"]
[White "sergiochess83"]
[Black "NewBornNow"]
[Result "1-0"]
[WhiteElo "2839"]
[BlackElo "2686"]
[TimeControl "180+1"]
[EndTime "11:59:02 PDT"]
[Termination "sergiochess83 won by resignation"]

1. e4 {[%clk 0:03:00.9]} 1... c5 {[%clk 0:02:57.9]} 2. Nf3 {[%clk 0:03:00.3]}
2... d6 {[%clk 0:02:55.8]} 3. d4 {[%clk 0:02:58.5]} 3... cxd4 {[%clk 0:02:55.7]}
4. Nxd4 {[%clk 0:02:59.4]} 4... Nf6 {[%clk 0:02:55.6]} 5. Nc3 {[%clk 0:03:00]}
5... a6 {[%clk 0:02:55.8]} 6. Be3 {[%clk 0:03:00.6]} 6... Ng4 {[%clk 0:02:52.7]}
7. Bg5 {[%clk 0:02:59.6]} 7... h6 {[%clk 0:02:52.7]} 8. Bh4 {[%clk 0:02:59.4]}
8... g5 {[%clk 0:02:52.5]} 9. Bg3 {[%clk 0:02:59.4]} 9... Bg7 {[%clk 0:02:51.9]}
10. h3 {[%clk 0:02:55.5]} 10... Ne5 {[%clk 0:02:49.7]} 11. Qd2 {[%clk
0:02:53.5]} 11... Nbc6 {[%clk 0:02:48.5]} 12. Nb3 {[%clk 0:02:53.3]} 12... Be6
{[%clk 0:02:47.2]} 13. O-O-O {[%clk 0:02:52.9]} 13... Na5 {[%clk 0:02:43.6]} 14.
Nxa5 {[%clk 0:02:15.4]} 14... Qxa5 {[%clk 0:02:40.8]} 15. a3 {[%clk 0:02:16]}
15... Rc8 {[%clk 0:02:16.8]} 16. Nd5 {[%clk 0:02:10.8]} 16... Qxd2+ {[%clk
0:02:14.4]} 17. Rxd2 {[%clk 0:02:10.9]} 17... Nc4 {[%clk 0:02:11.3]} 18. Bxc4
{[%clk 0:02:10]} 18... Rxc4 {[%clk 0:02:10.6]} 19. f3 {[%clk 0:02:10.1]} 19...
b5 {[%clk 0:02:05.3]} 20. Re1 {[%clk 0:01:57.6]} 20... Bxd5 {[%clk 0:01:44.7]}
21. Rxd5 {[%clk 0:01:54.7]} 21... Kd7 {[%clk 0:01:41.6]} 22. c3 {[%clk
0:01:26.3]} 22... Rhc8 {[%clk 0:01:26.2]} 23. Red1 {[%clk 0:01:25.4]} 23... Ke6
{[%clk 0:01:24.1]} 24. Kc2 {[%clk 0:01:18.6]} 24... R4c5 {[%clk 0:01:04.7]} 25.
Bf2 {[%clk 0:01:09.5]} 25... Rxd5 {[%clk 0:01:02.9]} 26. Rxd5 {[%clk 0:01:05.8]}
26... Be5 {[%clk 0:00:50.5]} 27. Bd4 {[%clk 0:00:45.7]} 27... Bxd4 {[%clk
0:00:34.5]} 28. Rxd4 {[%clk 0:00:45.5]} 28... f5 {[%clk 0:00:34.1]} 29. exf5+
{[%clk 0:00:41.5]} 29... Kxf5 {[%clk 0:00:33.3]} 30. a4 {[%clk 0:00:42.1]} 30...
bxa4 {[%clk 0:00:30]} 31. Rxa4 {[%clk 0:00:41.7]} 31... Rc6 {[%clk 0:00:30]} 32.
Kd3 {[%clk 0:00:41.8]} 32... e5 {[%clk 0:00:28.8]} 33. g4+ {[%clk 0:00:28]}
33... Ke6 {[%clk 0:00:27.3]} 34. c4 {[%clk 0:00:27]} 34... d5 {[%clk 0:00:19.3]}
35. cxd5+ {[%clk 0:00:24.4]} 35... Kxd5 {[%clk 0:00:19.3]} 36. Ra5+ {[%clk
0:00:24.9]} 36... Kd6 {[%clk 0:00:19]} 37. Ke4 {[%clk 0:00:22.1]} 37... Rb6
{[%clk 0:00:13.8]} 38. Kf5 {[%clk 0:00:17.8]} 38... Rb3 {[%clk 0:00:12.6]} 39.
Rxa6+ {[%clk 0:00:16.4]} 39... Kd5 {[%clk 0:00:12.2]} 40. Rxh6 {[%clk
0:00:07.7]} 40... Rxf3+ {[%clk 0:00:11.1]} 41. Kxg5 {[%clk 0:00:08.6]} 41... e4
{[%clk 0:00:11.6]} 42. Rh8 {[%clk 0:00:08.6]} 42... e3 {[%clk 0:00:11.3]} 43. h4
{[%clk 0:00:08]} 43... Kd4 {[%clk 0:00:07.7]} 44. Re8 {[%clk 0:00:07.7]} 44...
Kd3 {[%clk 0:00:05.4]} 45. h5 {[%clk 0:00:07.3]} 45... e2 {[%clk 0:00:05.5]} 46.
h6 {[%clk 0:00:04.7]} 46... Re3 {[%clk 0:00:05]} 47. Rxe3+ {[%clk 0:00:04.6]}
47... Kxe3 {[%clk 0:00:05.1]} 48. h7 {[%clk 0:00:05.5]} 48... e1=Q {[%clk
0:00:06]} 49. h8=Q {[%clk 0:00:06]} 49... Qd2 {[%clk 0:00:05.4]} 50. Qe5+ {[%clk
0:00:05.1]} 50... Kf3+ {[%clk 0:00:05]} 51. Kf5 {[%clk 0:00:04.9]} 51... Qd7+
{[%clk 0:00:04.8]} 52. Kf6 {[%clk 0:00:04.6]} 52... Qxg4 {[%clk 0:00:04.5]} 53.
Qf5+ {[%clk 0:00:02.8]} 53... Qf4 {[%clk 0:00:03.2]} 54. b4 {[%clk 0:00:02.2]}
1-0

[Event "*** SCC Grand Prix: Titled Tuesday Blitz"]
[Site "Chess.com"]
[Date "2020.07.07"]
[Round "10"]
[White "theblitzchamp"]
[Black "NikolaGry"]
[Result "0-1"]
[WhiteElo "2729"]
[BlackElo "2633"]
[TimeControl "180+1"]
[EndTime "11:59:02 PDT"]
[Termination "NikolaGry won by checkmate"]

1. d4 {[%clk 0:03:00.9]} 1... d5 {[%clk 0:02:59.7]} 2. Bf4 {[%clk 0:03:00.9]}
2... c6 {[%clk 0:02:59.4]} 3. e3 {[%clk 0:02:58.5]} 3... Qb6 {[%clk 0:02:59.2]}
4. b3 {[%clk 0:02:49.9]} 4... Bf5 {[%clk 0:02:57.8]} 5. Nf3 {[%clk 0:02:46.8]}
5... Nd7 {[%clk 0:02:53.4]} 6. Bd3 {[%clk 0:02:46.4]} 6... Bg6 {[%clk
0:02:49.9]} 7. O-O {[%clk 0:02:44.3]} 7... e6 {[%clk 0:02:49.9]} 8. c4 {[%clk
0:02:44.4]} 8... Ngf6 {[%clk 0:02:48.6]} 9. Ne5 {[%clk 0:02:40.1]} 9... Nxe5
{[%clk 0:02:43]} 10. Bxe5 {[%clk 0:02:33]} 10... Nd7 {[%clk 0:02:42.8]} 11. Bg3
{[%clk 0:02:32.3]} 11... Be7 {[%clk 0:02:40.3]} 12. Nc3 {[%clk 0:02:32.1]} 12...
O-O {[%clk 0:02:34.2]} 13. Re1 {[%clk 0:02:30.8]} 13... Bb4 {[%clk 0:02:26.7]}
14. Rc1 {[%clk 0:02:25.9]} 14... Qa5 {[%clk 0:02:19.8]} 15. Qc2 {[%clk
0:02:21.9]} 15... Nf6 {[%clk 0:02:07.4]} 16. Bxg6 {[%clk 0:02:03.2]} 16... hxg6
{[%clk 0:02:06.6]} 17. f3 {[%clk 0:02:02.2]} 17... Rac8 {[%clk 0:01:56.1]} 18.
Re2 {[%clk 0:01:51.6]} 18... dxc4 {[%clk 0:01:43.3]} 19. bxc4 {[%clk 0:01:51.2]}
19... c5 {[%clk 0:01:43.6]} 20. Nb5 {[%clk 0:00:56.8]} 20... cxd4 {[%clk
0:01:33.2]} 21. exd4 {[%clk 0:00:56.9]} 21... Rfd8 {[%clk 0:01:30.6]} 22. a3
{[%clk 0:00:50.3]} 22... Bf8 {[%clk 0:01:27.9]} 23. Be1 {[%clk 0:00:19.8]} 23...
Qb6 {[%clk 0:01:23.9]} 24. Bf2 {[%clk 0:00:17.6]} 24... a6 {[%clk 0:01:16.9]}
25. Nc3 {[%clk 0:00:13.8]} 25... Rxc4 {[%clk 0:01:11.4]} 26. Qd3 {[%clk
0:00:14.2]} 26... Qc6 {[%clk 0:01:02.1]} 27. Rec2 {[%clk 0:00:13.1]} 27... Rc8
{[%clk 0:01:00.2]} 28. Be1 {[%clk 0:00:10]} 28... Bxa3 {[%clk 0:00:52.8]} 29.
Ra1 {[%clk 0:00:09.7]} 29... Bb4 {[%clk 0:00:48.5]} 30. Rac1 {[%clk 0:00:09.7]}
30... b5 {[%clk 0:00:47.5]} 31. Kh1 {[%clk 0:00:09.2]} 31... Bf8 {[%clk
0:00:46.1]} 32. d5 {[%clk 0:00:05.8]} 32... Nxd5 {[%clk 0:00:34.7]} 33. h3
{[%clk 0:00:04.8]} 33... b4 {[%clk 0:00:26.3]} 34. Nxd5 {[%clk 0:00:05.1]} 34...
Rxc2 {[%clk 0:00:25.5]} 35. Nxb4 {[%clk 0:00:05.5]} 35... Bxb4 {[%clk
0:00:22.3]} 36. Rd1 {[%clk 0:00:05.6]} 36... Bxe1 {[%clk 0:00:21.2]} 37. Rxe1
{[%clk 0:00:06.5]} 37... Rc1 {[%clk 0:00:20.9]} 38. Rxc1 {[%clk 0:00:06.2]}
38... Qxc1+ {[%clk 0:00:20]} 39. Kh2 {[%clk 0:00:07.1]} 39... Qf4+ {[%clk
0:00:18.6]} 40. Kg1 {[%clk 0:00:08]} 40... Qc1+ {[%clk 0:00:14.2]} 41. Kh2
{[%clk 0:00:08.2]} 41... Qc6 {[%clk 0:00:14.1]} 42. h4 {[%clk 0:00:08]} 42... a5
{[%clk 0:00:13.6]} 43. h5 {[%clk 0:00:08.6]} 43... gxh5 {[%clk 0:00:13.2]} 44.
Qe3 {[%clk 0:00:07.8]} 44... Qc5 {[%clk 0:00:12.9]} 45. Qb3 {[%clk 0:00:06.4]}
45... g6 {[%clk 0:00:12.3]} 46. Qb7 {[%clk 0:00:06.2]} 46... Rc7 {[%clk
0:00:12.3]} 47. Qa8+ {[%clk 0:00:06.2]} 47... Kg7 {[%clk 0:00:12.4]} 48. Kh3
{[%clk 0:00:06.9]} 48... Qe5 {[%clk 0:00:12]} 49. g4 {[%clk 0:00:05.1]} 49...
Rc2 {[%clk 0:00:11]} 50. f4 {[%clk 0:00:02.2]} 50... Qxf4 {[%clk 0:00:08.7]} 51.
Qh1 {[%clk 0:00:02.8]} 51... Rc3+ {[%clk 0:00:07.8]} 52. Kg2 {[%clk 0:00:02.8]}
52... Qg3+ {[%clk 0:00:07.7]} 53. Kf1 {[%clk 0:00:03.1]} 53... Rc1+ {[%clk
0:00:07.8]} 54. Ke2 {[%clk 0:00:04]} 54... Rxh1 {[%clk 0:00:07.6]} 55. g5 {[%clk
0:00:04.9]} 55... Rh2+ {[%clk 0:00:07.5]} 56. Kf1 {[%clk 0:00:05]} 56... Qf2#
{[%clk 0:00:07.5]} 0-1

[Event "*** SCC Grand Prix: Titled Tuesday Blitz"]
[Site "Chess.com"]
[Date "2020.07.07"]
[Round "10"]
[White "Balla_Tamas"]
[Black "bazar-wokzal"]
[Result "1-0"]
[WhiteElo "2518"]
[BlackElo "2384"]
[TimeControl "180+1"]
[EndTime "11:59:07 PDT"]
[Termination "Balla_Tamas won by resignation"]

1. d4 {[%clk 0:03:00.9]} 1... Nf6 {[%clk 0:02:59.6]} 2. Bf4 {[%clk 0:02:59.8]}
2... c5 {[%clk 0:02:58.4]} 3. c3 {[%clk 0:02:57.1]} 3... Qb6 {[%clk 0:02:57.3]}
4. Qb3 {[%clk 0:02:27.1]} 4... Qxb3 {[%clk 0:02:50.3]} 5. axb3 {[%clk
0:02:25.6]} 5... cxd4 {[%clk 0:02:49.2]} 6. cxd4 {[%clk 0:02:26.5]} 6... Nc6
{[%clk 0:02:46.9]} 7. e3 {[%clk 0:02:26.3]} 7... Nh5 {[%clk 0:02:18]} 8. Bc7
{[%clk 0:02:18.9]} 8... d6 {[%clk 0:02:11.7]} 9. Bb5 {[%clk 0:02:17.6]} 9... Bd7
{[%clk 0:02:07.1]} 10. Nc3 {[%clk 0:02:03.8]} 10... Nf6 {[%clk 0:01:47.1]} 11.
Nf3 {[%clk 0:01:59.5]} 11... e6 {[%clk 0:01:22.4]} 12. Kd2 {[%clk 0:01:47.4]}
12... Rc8 {[%clk 0:01:18.1]} 13. Bxc6 {[%clk 0:01:46.2]} 13... Bxc6 {[%clk
0:01:16.5]} 14. Ba5 {[%clk 0:01:46.1]} 14... d5 {[%clk 0:00:45.1]} 15. Nd1
{[%clk 0:01:45.5]} 15... Ne4+ {[%clk 0:00:44]} 16. Ke1 {[%clk 0:01:44.6]} 16...
f6 {[%clk 0:00:34.4]} 17. Nd2 {[%clk 0:01:43.6]} 17... Nd6 {[%clk 0:00:28.3]}
18. Bb4 {[%clk 0:01:43.3]} 18... a6 {[%clk 0:00:25.1]} 19. Nc3 {[%clk
0:01:42.6]} 19... Kd7 {[%clk 0:00:23.6]} 20. f3 {[%clk 0:01:40.9]} 20... Be7
{[%clk 0:00:23.2]} 21. Kf2 {[%clk 0:01:38]} 21... Ne4+ {[%clk 0:00:20.5]} 22.
Ndxe4 {[%clk 0:01:31.6]} 22... Bxb4 {[%clk 0:00:20.6]} 23. Nc5+ {[%clk
0:01:31.5]} 23... Kd6 {[%clk 0:00:17.8]} 24. Nd3 {[%clk 0:01:29.9]} 24... Bxc3
{[%clk 0:00:15.8]} 25. bxc3 {[%clk 0:01:29.9]} 25... Bb5 {[%clk 0:00:16.5]} 26.
Nc5 {[%clk 0:01:29.1]} 26... b6 {[%clk 0:00:16.5]} 27. Nxa6 {[%clk 0:01:28.9]}
27... Rxc3 {[%clk 0:00:15.4]} 28. Ra3 {[%clk 0:01:12.5]} 28... Ra8 {[%clk
0:00:12.8]} 29. Rha1 {[%clk 0:01:12.7]} 29... Rc2+ {[%clk 0:00:12.5]} 30. Kg3
{[%clk 0:01:11.9]} 30... Rb2 {[%clk 0:00:10.4]} 31. Nc7 {[%clk 0:00:44.2]} 31...
Kxc7 {[%clk 0:00:10.1]} 32. Rxa8 {[%clk 0:00:43.6]} 32... Rxb3 {[%clk
0:00:09.9]} 33. R8a7+ {[%clk 0:00:42.1]} 33... Kc6 {[%clk 0:00:10.3]} 34. Rxg7
{[%clk 0:00:42.6]} 34... h5 {[%clk 0:00:10.1]} 35. Kf4 {[%clk 0:00:40.9]} 35...
Rb2 {[%clk 0:00:09.6]} 36. Rg6 {[%clk 0:00:40]} 36... Kd6 {[%clk 0:00:07.6]} 37.
h4 {[%clk 0:00:35.4]} 37... Bc4 {[%clk 0:00:07]} 38. g4 {[%clk 0:00:33.5]} 38...
hxg4 {[%clk 0:00:06.4]} 39. fxg4 {[%clk 0:00:33.5]} 39... b5 {[%clk 0:00:06.7]}
40. Rxf6 {[%clk 0:00:31.9]} 40... b4 {[%clk 0:00:06.9]} 41. h5 {[%clk
0:00:31.5]} 41... b3 {[%clk 0:00:07.1]} 42. Kg3 {[%clk 0:00:28.9]} 42... Re2
{[%clk 0:00:06.1]} 43. h6 {[%clk 0:00:24.3]} 43... b2 {[%clk 0:00:06]} 44. Rg1
{[%clk 0:00:19.5]} 44... Bd3 {[%clk 0:00:06]} 45. g5 {[%clk 0:00:18.1]} 45...
b1=Q {[%clk 0:00:06.2]} 46. Rxb1 {[%clk 0:00:17.8]} 46... Bxb1 {[%clk
0:00:06.9]} 47. g6 {[%clk 0:00:18.5]} 47... Rxe3+ {[%clk 0:00:07.4]} 48. Kh4
{[%clk 0:00:17.1]} 48... Re4+ {[%clk 0:00:07.6]} 49. Kg5 {[%clk 0:00:16.3]}
49... Rxd4 {[%clk 0:00:07.3]} 50. h7 {[%clk 0:00:15.9]} 50... Bxg6 {[%clk
0:00:05.5]} 51. Rxg6 {[%clk 0:00:15.6]} 51... Rd1 {[%clk 0:00:05.4]} 52. h8=Q
{[%clk 0:00:15.8]} 52... Rg1+ {[%clk 0:00:05.6]} 53. Kf6 {[%clk 0:00:15.8]}
53... Rf1+ {[%clk 0:00:05.7]} 54. Kg7 {[%clk 0:00:16.1]} 54... Rf5 {[%clk
0:00:05.6]} 55. Qd8+ {[%clk 0:00:15.5]} 55... Ke5 {[%clk 0:00:05.8]} 56. Qd7
{[%clk 0:00:15.3]} 56... Kf4 {[%clk 0:00:03.2]} 57. Rxe6 {[%clk 0:00:14.9]}
57... Re5 {[%clk 0:00:03.8]} 58. Rxe5 {[%clk 0:00:14.6]} 1-0

[Event "*** SCC Grand Prix: Titled Tuesday Blitz"]
[Site "Chess.com"]
[Date "2020.07.07"]
[Round "10"]
[White "Gloomy_Wanderer"]
[Black "Chessdreamer2020"]
[Result "1-0"]
[WhiteElo "2751"]
[BlackElo "2610"]
[TimeControl "180+1"]
[EndTime "11:59:10 PDT"]
[Termination "Gloomy_Wanderer won by checkmate"]

1. d4 {[%clk 0:03:00.9]} 1... d6 {[%clk 0:02:58.8]} 2. e4 {[%clk 0:03:00.8]}
2... Nf6 {[%clk 0:02:56.6]} 3. Nc3 {[%clk 0:03:00.6]} 3... e5 {[%clk 0:02:52.7]}
4. Nge2 {[%clk 0:03:00.4]} 4... c6 {[%clk 0:02:47.7]} 5. a4 {[%clk 0:02:59.7]}
5... Be7 {[%clk 0:02:45.6]} 6. g3 {[%clk 0:02:59.6]} 6... exd4 {[%clk 0:02:39]}
7. Nxd4 {[%clk 0:03:00.5]} 7... d5 {[%clk 0:02:36.8]} 8. e5 {[%clk 0:02:52.8]}
8... Ng4 {[%clk 0:02:32.1]} 9. f4 {[%clk 0:02:53]} 9... O-O {[%clk 0:02:29.3]}
10. Be2 {[%clk 0:02:49.1]} 10... Nh6 {[%clk 0:02:21.4]} 11. O-O {[%clk
0:02:48.7]} 11... Bh3 {[%clk 0:02:18.3]} 12. Rf2 {[%clk 0:02:48.8]} 12... Bc5
{[%clk 0:02:09.4]} 13. Be3 {[%clk 0:02:46.5]} 13... Qd7 {[%clk 0:02:06.2]} 14.
Qd2 {[%clk 0:02:36]} 14... Na6 {[%clk 0:02:02.3]} 15. Re1 {[%clk 0:02:20.9]}
15... Ng4 {[%clk 0:01:53.6]} 16. Bxg4 {[%clk 0:02:20.6]} 16... Bxg4 {[%clk
0:01:53.4]} 17. Nb3 {[%clk 0:02:06.9]} 17... Bb4 {[%clk 0:01:51.1]} 18. Qd3
{[%clk 0:01:53.1]} 18... Bf5 {[%clk 0:01:42.7]} 19. Qd1 {[%clk 0:01:53.3]} 19...
b6 {[%clk 0:01:38.5]} 20. Nd4 {[%clk 0:01:52.4]} 20... Bg4 {[%clk 0:01:36]} 21.
Qd3 {[%clk 0:01:50.8]} 21... Nc5 {[%clk 0:01:35.7]} 22. Qd2 {[%clk 0:01:51]}
22... Ne4 {[%clk 0:01:35.1]} 23. Qd3 {[%clk 0:01:45.2]} 23... Bxc3 {[%clk
0:01:31.7]} 24. bxc3 {[%clk 0:01:44.9]} 24... Nxf2 {[%clk 0:01:29.9]} 25. Bxf2
{[%clk 0:01:44.8]} 25... c5 {[%clk 0:01:30.2]} 26. Nf3 {[%clk 0:01:44.2]} 26...
Bf5 {[%clk 0:01:28]} 27. Qd2 {[%clk 0:01:42.3]} 27... Rad8 {[%clk 0:01:24.8]}
28. a5 {[%clk 0:01:41.6]} 28... h6 {[%clk 0:01:21.5]} 29. axb6 {[%clk
0:01:41.5]} 29... axb6 {[%clk 0:01:20.9]} 30. Rb1 {[%clk 0:01:42.2]} 30... Qc6
{[%clk 0:01:19.9]} 31. Nh4 {[%clk 0:01:38.7]} 31... Be4 {[%clk 0:01:19.3]} 32.
f5 {[%clk 0:01:38.7]} 32... d4 {[%clk 0:01:18.2]} 33. cxd4 {[%clk 0:01:38.8]}
33... cxd4 {[%clk 0:01:18.2]} 34. Qf4 {[%clk 0:01:38.4]} 34... Qxc2 {[%clk
0:01:15.4]} 35. Re1 {[%clk 0:01:38.4]} 35... Ba8 {[%clk 0:01:11.2]} 36. Bxd4
{[%clk 0:01:32.6]} 36... Qc6 {[%clk 0:01:06.5]} 37. Kf2 {[%clk 0:01:30.5]} 37...
Qc4 {[%clk 0:00:41.1]} 38. Be3 {[%clk 0:01:15.8]} 38... Qxf4+ {[%clk 0:00:38.9]}
39. gxf4 {[%clk 0:01:16.7]} 39... b5 {[%clk 0:00:37]} 40. Rb1 {[%clk 0:01:16.7]}
40... Rd5 {[%clk 0:00:34.8]} 41. Nf3 {[%clk 0:01:16.3]} 41... Rfd8 {[%clk
0:00:33.4]} 42. Rb4 {[%clk 0:01:16.4]} 42... Bc6 {[%clk 0:00:33]} 43. Nd4 {[%clk
0:01:16.2]} 43... Be8 {[%clk 0:00:32]} 44. Kf3 {[%clk 0:01:14.1]} 44... Rb8
{[%clk 0:00:26]} 45. Ke4 {[%clk 0:01:12.6]} 45... Rdd8 {[%clk 0:00:25.5]} 46. h4
{[%clk 0:01:02]} 46... Rdc8 {[%clk 0:00:21.5]} 47. e6 {[%clk 0:01:00.8]} 47...
Bc6+ {[%clk 0:00:21.1]} 48. Ke5 {[%clk 0:00:58.3]} 48... Bg2 {[%clk 0:00:17.9]}
49. f6 {[%clk 0:00:52]} 49... Rc5+ {[%clk 0:00:16]} 50. Kd6 {[%clk 0:00:52.4]}
50... Rd5+ {[%clk 0:00:16.2]} 51. Kc7 {[%clk 0:00:52.3]} 51... Re8 {[%clk
0:00:13.2]} 52. f5 {[%clk 0:00:45.6]} 52... gxf6 {[%clk 0:00:12]} 53. Rb2 {[%clk
0:00:43.8]} 53... Be4 {[%clk 0:00:11]} 54. Rf2 {[%clk 0:00:43.4]} 54... fxe6
{[%clk 0:00:09.6]} 55. fxe6 {[%clk 0:00:43.1]} 55... f5 {[%clk 0:00:09.2]} 56.
Rf1 {[%clk 0:00:41.3]} 56... Rxd4 {[%clk 0:00:09.3]} 57. Rg1+ {[%clk 0:00:41]}
57... Kf8 {[%clk 0:00:07.3]} 58. Bxd4 {[%clk 0:00:41.3]} 58... Rxe6 {[%clk
0:00:07.8]} 59. Kd7 {[%clk 0:00:39.9]} 59... Ra6 {[%clk 0:00:05.4]} 60. Bg7+
{[%clk 0:00:36.5]} 60... Kf7 {[%clk 0:00:05.2]} 61. Be5 {[%clk 0:00:36.5]} 61...
Ra7+ {[%clk 0:00:05.3]} 62. Kd6 {[%clk 0:00:36.6]} 62... Re7 {[%clk 0:00:05.7]}
63. Rg7+ {[%clk 0:00:35.8]} 63... Kf8 {[%clk 0:00:05.9]} 64. Rxe7 {[%clk
0:00:36.1]} 64... b4 {[%clk 0:00:06.4]} 65. Ke6 {[%clk 0:00:31.8]} 65... b3
{[%clk 0:00:06.1]} 66. Kf6 {[%clk 0:00:31.8]} 66... f4 {[%clk 0:00:03.9]} 67.
Rd7 {[%clk 0:00:28.2]} 67... f3 {[%clk 0:00:03.7]} 68. Rd8# {[%clk 0:00:28.3]}
1-0